Cogmind - Beta 13 @@@ ROGUE MODE // 2024.05.16 @ 15:18:38 Player: Joshi Result: Self-destructed Performance ------------- Evolutions (1) 500 Regions Visited (2) 400 Robots Destroyed (19) 95 Value Destroyed (321) 321 Prototype IDs (0) 0 Alien Tech Used (0) 0 Bonus (0) 0 TOTAL SCORE: 1316 Bonus ------- None Cogmind --------- Core Integrity 400/400 Matter 123/300 Energy 265/265 System Corruption 0% Temperature Cool (0) Movement Walking (120) Location -9/Materials Parts ------- > --- POWER (1) -------- Reinforced Ion Engine > --- PROPULSION (4) --- Aluminum Leg Aluminum Leg > --- UTILITY (2) ------ Structural Scanner Seismic Detector > --- WEAPON (2) ------- Backup Laser I > --- INVENTORY (5) ---- Reinforced Ion Engine Flight Unit Flight Unit Core Shielding Light Armor Plating Peak State ------------ > --- POWER ------------ Reinforced Ion Engine > --- PROPULSION ------- Aluminum Leg Aluminum Leg > --- UTILITY ---------- Structural Scanner Light Armor Plating > --- WEAPON ----------- Backup Laser I Grenade Launcher > --- INVENTORY -------- Reinforced Ion Engine Flight Unit Flight Unit Core Shielding Light Armor Plating [Rating: 8] Favorites ----------- Power Light Ion Engine Engine Light Ion Engine Propulsion Aluminum Leg Leg Aluminum Leg Flight Unit Flight Unit Utility Seismic Detector Device Seismic Detector Storage Huge Storage Unit Processor Targeting Computer Protection Light Armor Plating Weapon Light Assault Rifle Energy Gun Backup Laser I Ballistic Gun Light Assault Rifle Launcher Grenade Launcher Build | -11 -10 -9 ------- Run | Yrd Mat Mat Slots Evolved 2 | . . 2 Power . | . . . Propulsion 2 | . . 2 Utility . | . . . Weapon . | . . . Parts Attached 28 | 6 22 . Power 4 | 1 3 . Engine 4 | 1 3 . Core . | . . . Reactor . | . . . Propulsion 12 | 2 10 . Treads . | . . . Leg 10 | 2 8 . Wheel . | . . . Hover . | . . . Flight 2 | . 2 . Utility 8 | . 8 . Device 5 | . 5 . Storage 1 | . 1 . Processor 1 | . 1 . Hackware . | . . . Protection 1 | . 1 . Artifact . | . . . Weapon 4 | 3 1 . Energy Gun 1 | 1 . . Energy Cannon . | . . . Ballistic Gun 2 | 2 . . Ballistic Cannon . | . . . Launcher 1 | . 1 . Special Weapon . | . . . Impact Weapon . | . . . Slashing Weapon . | . . . Piercing Weapon . | . . . Special Melee Weapon . | . . . Unidentified Prototypes . | . . . Parts Lost 7 | . 7 . Power 1 | . 1 . Propulsion . | . . . Utility 3 | . 3 . Weapon 3 | . 3 . Highest Loss Streak 3 | . 3 . To Critical Strikes . | . . . Average Slot Usage (%) 92 | . 92 . Engine 13 | . 13 . Leg 28 | . 28 . Device 15 | . 15 . Processor 3 | . 3 . Protection 4 | . 4 . Energy Gun 4 | . 4 . Ballistic Gun 16 | . 16 . Launcher 5 | . 5 . Naked Turns . | . . . Heaviest Build 18 | 6 18 13 Greatest Support 20 | 20 20 20 Greatest Overweight (x) 1 | 1 . . Average Overweight (x) . | . . . Largest Inventory Capacity 25 | 5 25 5 Average Capacity 5 | 5 5 5 Most Carried 5 | 5 5 5 Average Carried 4 | 3 4 5 Final Capacity 5 | 5 5 5 Final Carried 5 | 4 5 5 Class Distribution -------------------- 100% | Mutant Dominant Class ---------------- Mutant | -10/Materials Mutant | -9/Materials Resources | -11 -10 -9 ----------- Run | Yrd Mat Mat Matter Collected 490 | 264 226 . Remotely . | . . . Salvage Created 328 | 47 281 . Parts 33 | 4 29 . Haulers Intercepted . | . . . Recyclers Shooed . | . . . Parts Field Recycled . | . . . Retrieved Matter . | . . . Parts Self-Destructed . | . . . Prevented . | . . . Kills | -11 -10 -9 ------- Run | Yrd Mat Mat Combat Hostiles Destroyed 10 | 1 9 . Guns 7 | 1 6 . AOE 3 | . 3 . Classes Destroyed 7 | 1 6 . Worker 2 | . 2 . Builder 3 | . 3 . Tunneler 1 | . 1 . Recycler 1 | . 1 . Watcher 2 | . 2 . Swarmer 6 | . 6 . Grunt 4 | 1 3 . Best Kill Streak 5 | 1 5 . Combat Bots Only 3 | 1 3 . Max Kills in Single Turn 2 | 1 2 . Gunslinging . | . . . Exploded 2 | . 2 . Melee . | . . . Uniques/NPCs Destroyed . | . . . Combat | -11 -10 -9 -------- Run | Yrd Mat Mat Hostile Shots Fired 129 | 5 124 . Missed 46 | 1 45 . Damage Taken 930 | 42 888 . Core 180 | 10 170 . Absorbed by Shields . | . . . Core Remaining (%) 62 | 96 28 . Volleys Fired 47 | 4 43 . Largest 2 | 2 2 . Hottest 60 | 60 60 . Shots Fired 81 | 8 73 . Gun 68 | 8 60 . Cannon . | . . . Launcher 13 | . 13 . Special . | . . . Kinetic 58 | 4 54 . Thermal 6 | . 6 . Explosive 13 | . 13 . Electromagnetic 4 | 4 . . Robot Hit Streak 7 | 3 7 . Robot Miss Streak 6 | 1 6 . Penetration Max . | . . . Secondary Targets . | . . . Shots Hit Robots 37 | 5 32 . Core Hits 33 | 2 31 . Critical Kills . | . . . Critical Parts Destroyed . | . . . Critical Strikes . | . . . Melee Attacks . | . . . Impact . | . . . Slashing . | . . . Piercing . | . . . Sneak Attacks . | . . . Combat Hostiles . | . . . Follow-up Attacks . | . . . Damage Inflicted 870 | 59 811 . Guns 343 | 59 284 . Cannons . | . . . Explosions 508 | . 508 . Melee . | . . . Ramming 19 | . 19 . Kinetic 291 | 34 257 . Thermal 27 | . 27 . Explosive 508 | . 508 . Electromagnetic 25 | 25 . . Impact . | . . . Slashing . | . . . Piercing . | . . . Highest Corruption 3 | . 3 . Average Corruption 2 | . 2 . Corruption Purged . | . . . Corruption Blocked . | . . . Effects 10 | . 10 . Matter Fused 3 | . 3 . Heat Flow Errors 2 | . 2 . Energy Discharges 2 | . 2 . Misfires 2 | . 2 . Weapon Failures 1 | . 1 . Overload Shots . | . . . Overflow Damage 68 | . 68 . Projectiles . | . . . Explosions 68 | . 68 . Melee . | . . . Knockbacks . | . . . Impact . | . . . Kinetic . | . . . Secondary . | . . . Self-Inflicted Damage 162 | . 162 . Shots 4 | . 4 . Rammed . | . . . Targets Rammed 18 | . 18 . Kicked 18 | . 18 . Crushed . | . . . Highest Temperature 265 | 58 265 . Average Temperature 78 | 35 86 . Received Heat Transfer 126 | 24 102 . Siege Activations . | . . . Robots Corrupted . | . . . Combat Hostiles . | . . . Parts Fried . | . . . Impact Corruptions . | . . . Robots Melted . | . . . Combat Hostiles . | . . . Parts Melted . | . . . Heat Transferred 111 | . 111 . Parts Sabotaged . | . . . Parts Stolen . | . . . Parts Stripped . | . . . Power Chain Reactions . | . . . Alert | -11 -10 -9 ------- Run | Yrd Mat Mat Peak Influence 259 | 20 259 109 Initial 109 | . 13 109 Average 86 | 7 94 109 Maximum Alert Level 1 | . 1 . Low Security (%) 77 | 100 74 100 Level 1 22 | . 25 . Level 2 . | . . . Level 3 . | . . . Level 4 . | . . . Level 5 . | . . . High Security . | . . . Max Security . | . . . Squads Dispatched 1 | . 1 . Investigation . | . . . Extermination . | . . . Reinforcement 1 | . 1 . Assault . | . . . Garrison . | . . . Intercept . | . . . Searches Triggered . | . . . Construction Impeded . | . . . Haulers Reinforced . | . . . Active Scanning Responses . | . . . Cargo Convoy Interrupts . | . . . Stealth | -11 -10 -9 --------- Run | Yrd Mat Mat Distress Signals 1 | . 1 . Communications Jammed . | . . . Distress Signals . | . . . Times Spotted 17 | 1 16 . Peak Tracking Total 5 | 1 5 . Tactical Retreats 1 | . 1 . Traps | -11 -10 -9 ------- Run | Yrd Mat Mat Traps Triggered 4 | . 4 . Indirectly . | . . . Trap Hack Attempts . | . . . Triggered . | . . . Disarmed . | . . . Reprogrammed . | . . . Reused . | . . . Traps Extracted . | . . . Installed . | . . . Triggered . | . . . Machines | -11 -10 -9 ---------- Run | Yrd Mat Mat Machines Disabled 5 | . 5 . Max in Single Turn 2 | . 2 . Machines Repaired . | . . . Machines Dismantled . | . . . Machines Sabotaged . | . . . Overloaded Fab Kills . | . . . Hacking | -11 -10 -9 --------- Run | Yrd Mat Mat Machines Accessed 8 | . 8 . Terminals 5 | . 5 . Fabricators . | . . . Repair Stations 1 | . 1 . Recycling Units 2 | . 2 . Scanalyzers . | . . . Garrison Access . | . . . Total Hacks 20 | . 20 . Successful 12 | . 12 . Failed 8 | . 8 . Catastrophic 1 | . 1 . Database Lockouts . | . . . Manual . | . . . Terminals 12 | . 12 . Fabricators . | . . . Repair Stations 1 | . 1 . Recycling Units 7 | . 7 . Scanalyzers . | . . . Garrison Access . | . . . Terminal Hacks 6 | . 6 . Record 2 | . 2 . Robot Analysis 1 | . 1 . Locate Traps 1 | . 1 . Maintenance Status 1 | . 1 . Transport Status 1 | . 1 . Fabricator Hacks . | . . . Repair Station Hacks 1 | . 1 . Refit 1 | . 1 . Recycling Unit Hacks 5 | . 5 . Process 1 | . 1 . Report Inventory 3 | . 3 . Retrieve Components 1 | . 1 . Scanalyzer . | . . . Garrison Access Hacks . | . . . Unauthorized Hacks . | . . . Terminals . | . . . Fabricators . | . . . Repair Stations . | . . . Recycling Units . | . . . Scanalyzers . | . . . Garrison Access . | . . . Data Cores Recovered . | . . . Used . | . . . Hacking Detections 5 | . 5 . Full Trace Events . | . . . Feedback Events . | . . . Feedback Blocked . | . . . Robot Schematics Acquired . | . . . Robots Built . | . . . Authchips . | . . . Time . | . . . Total Robot Build Rating . | . . . Part Schematics Acquired . | . . . Parts Built . | . . . Authchips . | . . . Time . | . . . Total Part Build Rating . | . . . Parts Repaired . | . . . Time . | . . . Parts Recycled . | . . . Recycled Matter 77 | . 77 . Retrieved Matter . | . . . Retrieved Components 1 | . 1 . Parts Scanalyzed . | . . . Part Schematics Acquired . | . . . Parts Damaged . | . . . Bothacking | -11 -10 -9 ------------ Run | Yrd Mat Mat Used RIF Installer . | . . . Robots Hacked . | . . . Non-combat . | . . . Combat . | . . . Robot Hacks Applied . | . . . Relay Couplers Released . | . . . Fabnet Peak Effective % . | . . . Robots Rewired . | . . . Allies Hacked . | . . . Hacks Repelled . | . . . Allies | -11 -10 -9 -------- Run | Yrd Mat Mat Total Allies . | . . . Largest Group . | . . . Highest-Rated Group . | . . . Highest-Rated Ally . | . . . Total Orders . | . . . Ally Attacks . | . . . Total Damage . | . . . Kills . | . . . Allies Corrupted . | . . . Allies Melted . | . . . Intel | -11 -10 -9 ------- Run | Yrd Mat Mat Robot Analysis Total 1 | . 1 . Derelict Logs Recovered . | . . . Drone Launches . | . . . Drone Recoveries . | . . . Exploration | -11 -10 -9 ------------- Run | Yrd Mat Mat Turns Passed 1038 | 98 934 6 Spaces Moved 703 | 89 609 5 Core 61 | 61 . . Treads . | . . . Legs 642 | 28 609 5 Wheels . | . . . Hover . | . . . Flight . | . . . Fastest Speed 50 | 50 120 120 Average Speed 114 | 79 120 120 Slowest Speed 120 | 120 120 120 Overloaded Moves . | . . . Propulsion Burnouts . | . . . Robots Hopped . | . . . Cave-ins Triggered . | . . . Exploration Rate (%) 26 | 8 70 2 Regions Visited 2 Branch Regions . Pre-discovered Areas . | . . . Known Exits Taken . | . . . Unknown Exits Taken 2 | 1 1 . Scrap Searched . | . . . Spaces Dug . | . . . Terrain Destroyed 97 | . 97 . Melee . | . . . Projectile . | . . . AOE 97 | . 97 . Terrain Rammed . | . . . Walls Destroyed . | . . . Machines Disabled . | . . . Actions | -11 -10 -9 --------- Run | Yrd Mat Mat Total 854 | 107 742 5 Wait 23 | . 23 . Move 701 | 88 608 5 Hop . | . . . Pick Up 22 | 8 14 . Fast Attach 7 | 2 5 . Attach 10 | 3 7 . Detach 3 | . 3 . Swap 11 | 1 10 . Drop 12 | 1 11 . Fire 47 | 4 43 . Melee . | . . . Ram . | . . . Kick 18 | . 18 . Crush . | . . . Escape Stasis . | . . . Rewire . | . . . Trap . | . . . Miscellaneous . | . . . Route ------- -11/Scrapyard -10/Materials (discovered 3 exits: [*Mat x2] / [*Min]) -9/Materials History --------- Turn | Location | Event 2 | -11/Scrapyard | Met Revision 17 46 | -11/Scrapyard | Discovered new exit (range 8) 99 | -11/Scrapyard | Entered Materials 276 | -10/Materials | Discovered new exit (range 16) 308 | -10/Materials | Build established: Mutant 514 | -10/Materials | Discovered new exit (range 13) 671 | -10/Materials | Lost 3 parts (1u2w) 813 | -10/Materials | Discovered new exit (range 16) 1015 | -10/Materials | Core integrity fell below 50% 1033 | -10/Materials | Entered another Materials area 1033 | -9/Materials | Evolved 2 slots: Propulsion x2 1039 | -9/Materials | Self-destructed Last Messages --------------- G-47 Trooper destroyed. R-06 Scavenger destroyed. R-06 Scavenger collects Aluminum Leg. The unstable cave ceiling collapses. U-05 Engineer lays Concrete. R-06 Scavenger collects Heat Sink. U-05 Engineer lays Concrete. Nuclear Reactor explodes. Grenade Launcher destroyed. Destroyed Grenade Launcher. U-05 Engineer destroyed. System corrupted: Heat flow error (+236). R-06 Scavenger collects Welding Torch. The unstable cave ceiling collapses. R-06 Scavenger collects Particle Gun. Acquired Structural Scanner. Acquired 15 matter. PARAMETERS=PROPULSION+2 LOCATION=UNKNOWN GOAL=ESCAPE Map ----- +----------------------------------------------------+ | ??????????????????????????????????????? | | ??????????????????????????????????????? | | ??????????????????????????????????????? | | ??????????????????????????????????????? | | ??????????????????????????????????????? | | ??????????????????????????????????????? | | ??????????????????????????????????????? | | ??????????????????????????????????????? | | ??????????????????????????????????????? | | ??????????????????????????????????????? | | ??????????????????????????????????????? | | ??????????????????????????????????????? | | ??????????????????????????????????????? | | ??????????????????????????????????????? | | ??????????????????????????????????????? | | ??????????????????????????????????????? | | ??????????????????????????????????????? | | ????????????? # ??????????????????????? | | ????????????? # ??????????????????????? | | ?????????????## ??????????????????????? | | ?????????????## ?????????????????????? | | ????????????### ##?????????????? ##?? | | ?????????###### ############ ?? ##?? | | ?????????##### ########### T ##?? | | ????????? ???????? | | ???????? T @##??????????? | | ???????? ##??????????? | | ???????????### ###+#####??????????? | | ???????????" ####?## ##??????????? | | ???????????? ####?## !/[ ##??????????? | | ??????????????????##] !/[ ##??????????? | | ??????????????????## /[ ##??????????? | | ??????????????????## ##??????????? | | ??????????????????## ##??????????? | | ??????????????????##########??????????? | | ??????????????????##########??????????? | | ??????????????????????????????????????? | | ??????????????????????????????????????? | | ??????????????????????????????????????? | | ??????????????????????????????????????? | | ??????????????????????????????????????? | | ??????????????????????????????????????? | | ??????????????????????????????????????? | | ??????????????????????????????????????? | | ??????????????????????????????????????? | | ??????????????????????????????????????? | | ??????????????????????????????????????? | | ??????????????????????????????????????? | | ??????????????????????????????????????? | | ??????????????????????????????????????? | +----------------------------------------------------+ Best States ------------- Heat Dissipation 25 Energy Generation 12 Energy Capacity 265 Matter Stores 300 Matter Capacity 300 Sight Range 16 Terrain Scan Density 10 Armor Coverage 150 Evasion (%) 55 Targeting Accuracy 5 Item Schematics ----------------- None Robot Schematics ------------------ None Fabricated ------------ Nothing Alien Tech Used ----------------- None Achievements -------------- Maybe Next Time I'll Detach My Launcher Challenges ------------ None Game ------ Seed ChainBattleAutocannon Manual? 0 Play Time 00:20:26 Cumulative 2.4 hours Start 2024.05.16 @ 14:36:21 End 2024.05.16 @ 15:18:38 Sessions 1 Manual Loads 0 Difficulty Rogue Special Mode None Game No. 2 Rogue 2 Adventurer 0 Explorer 0 Win Type - Total 0 Types 0/0/0/0/0/0/0/0/0 Lore% 1 Gallery% 4 Achievement% 3 Wizard Run 0 Options --------- Layout 1 ASCII 0 Keyboard 0 Movement Mouse Keybinds 0 Fullscreen 1 Font 24/Smallcaps Map View 50x35 Zoom Use 0% Tactical HUD 0 Map Filters NONE Filters NONE Steam 1 RUN: c07225dc-9c76-49ce-97b4-eb19cc428a61